bitfinex/quotes_BTCUSD_20251010
["timestamp","ask_amount","ask_price","bid_price","bid_amount"]
[1760112184676,6.95388174,119030.0,119020.0,0.20737612]
[1760112184908,0.6701519,119010.0,119000.0,5.8880463]
[1760112185130,7.55178359,119010.0,119000.0,5.79868069]
[1760112185319,7.55178359,119010.0,119000.0,5.71022787]
[1760112185320,7.29591088,119010.0,119000.0,5.71022787]
[1760112185560,7.62254768,119010.0,119000.0,5.71022787]
[1760112185777,8.07619958,119010.0,119000.0,5.14929661]
[1760112185963,8.07619958,119010.0,119000.0,5.09527222]
[1760112186207,8.08369215,119010.0,119000.0,4.71337343]
[1760112186417,3.08369215,119010.0,119000.0,4.71337343]
[1760112186626,3.08369215,119010.0,119000.0,4.5110084]
[1760112186627,8.08369215,119010.0,119000.0,4.5110084]
[1760112186831,8.08369215,119010.0,119000.0,4.39197272]
[1760112187038,7.97496258,119010.0,119000.0,4.24466861]
[1760112187248,7.40316731,119010.0,119000.0,4.24466861]
[1760112187471,3.05380731,119010.0,119000.0,4.24466861]
[1760112187696,8.05380731,119010.0,119000.0,4.24466861]
[1760112187926,7.40316731,119010.0,119000.0,4.24466861]
[1760112188141,8.11766983,119010.0,119000.0,3.86048417]
[1760112188358,8.44090983,119010.0,119000.0,3.86048417]
[1760112188604,8.44090983,119010.0,119000.0,3.42507854]
[1760112188840,8.46527958,119010.0,119000.0,3.42507854]
[1760112189102,7.49131958,119010.0,119000.0,3.42507854]
[1760112189298,8.44203958,119010.0,119000.0,3.42507854]
[1760112189517,8.03799958,119010.0,119000.0,3.42507854]
[1760112189731,2.78266984,119010.0,119000.0,3.42507854]
[1760112189940,7.45694983,119010.0,119000.0,3.42507854]
[1760112190150,7.17838649,119010.0,119000.0,3.42666902]
[1760112190405,3.35551323,119010.0,119000.0,3.42666902]
[1760112190617,4.08301367,119010.0,119000.0,3.42666902]
[1760112190835,4.52525952,119010.0,119000.0,3.42666902]
[1760112191049,4.10347352,119010.0,119000.0,3.42666902]
[1760112191264,5.56726632,119010.0,119000.0,3.42666902]
[1760112191485,7.60497322,119010.0,119000.0,3.42666902]
[1760112191902,7.94497322,119010.0,119000.0,3.42666902]
[1760112192113,2.94497322,119010.0,119000.0,3.42666902]
[1760112192330,7.94497322,119010.0,119000.0,3.04572641]
[1760112192534,8.01679744,119010.0,119000.0,3.04572641]
[1760112192785,8.11679743,119010.0,119000.0,3.04572641]
[1760112192989,8.11679743,119010.0,119000.0,2.65921293]
[1760112193217,8.11679743,119010.0,119000.0,2.45733147]
[1760112193421,8.11679743,119010.0,119000.0,2.23117565]
[1760112193422,3.09434295,119010.0,119000.0,2.23117565]
[1760112193643,8.64545639,119010.0,119000.0,2.1010218]
[1760112193869,4.17542596,119010.0,119000.0,1.8794647]
[1760112194094,7.69521151,119010.0,119000.0,1.8054266]
[1760112194357,4.1907462,119010.0,119000.0,1.8054266]
[1760112194593,4.16637645,119010.0,119000.0,1.8054266]
[1760112194792,9.16637645,119010.0,119000.0,1.8054266]
[1760112194971,4.16637645,119010.0,119000.0,1.8054266]
[1760112195209,9.16641645,119010.0,119000.0,1.8054266]
[1760112195643,9.19518566,119010.0,119000.0,1.8054266]
[1760112195854,9.19518566,119010.0,119000.0,1.25959809]
[1760112196064,8.11939312,119010.0,119000.0,1.25959809]
[1760112196272,8.51240594,119010.0,119000.0,1.25959809]
[1760112196487,4.06324523,119010.0,119000.0,1.25959809]
[1760112196732,9.16324522,119010.0,119000.0,1.25959809]
[1760112196951,9.16324522,119010.0,119000.0,0.47305821]
[1760112196952,9.49523267,119010.0,119000.0,0.47305821]
[1760112197174,5.9632191,119000.0,118990.0,0.01157721]
[1760112197381,7.83858514,119000.0,118990.0,0.01157721]
[1760112197601,7.83858514,119000.0,118990.0,1e-08]
[1760112197602,7.88097172,119000.0,118990.0,1e-08]
[1760112197810,1.43824737,118980.0,118970.0,0.01678981]
[1760112198024,2.84378585,118980.0,118970.0,0.01694117]
[1760112198229,8.24790585,118980.0,118970.0,0.01694117]
[1760112198431,8.32790265,118980.0,118970.0,0.01694117]
[1760112198631,8.35319058,118980.0,118970.0,0.01694117]
[1760112198846,3.35319058,118980.0,118970.0,0.01694117]
[1760112199069,8.35319058,118980.0,118970.0,0.01694117]
[1760112199274,3.68584889,118980.0,118970.0,0.01694117]
[1760112199490,5.81316078,118980.0,118970.0,0.01694117]
[1760112199694,7.30222878,118980.0,118970.0,0.01694117]
[1760112199902,7.97319378,118980.0,118970.0,0.01694117]
[1760112200106,8.07756033,118980.0,118970.0,0.01694117]
[1760112200342,5.89702367,118980.0,118970.0,0.01694117]
[1760112200541,5.28297199,118980.0,118970.0,0.01694117]
[1760112200751,5.33708999,118980.0,118970.0,0.01694117]
[1760112200960,2.2118369,118980.0,118970.0,0.01694117]
[1760112201168,2.72401734,118980.0,118970.0,0.01694117]
[1760112201369,2.91994134,118980.0,118970.0,0.01694117]
[1760112201586,2.95009324,118980.0,118970.0,0.01694117]
[1760112202030,2.58616608,118980.0,118970.0,0.01694117]
[1760112202233,3.20837455,118980.0,118970.0,0.01694117]
[1760112202442,0.92204364,118980.0,118970.0,0.39083077]
[1760112202662,1.13545481,118980.0,118970.0,0.29967077]
[1760112202872,1.86057725,118980.0,118970.0,0.01694117]
[1760112203086,1.13545481,118980.0,118970.0,0.01694117]
[1760112203301,1.13645481,118980.0,118970.0,0.30126182]
[1760112203523,0.88873481,118980.0,118970.0,0.30126182]
[1760112203741,0.50986235,118980.0,118970.0,1.11754426]
[1760112204145,0.50986235,118980.0,118970.0,0.47554388]
[1760112204146,0.5,118980.0,118970.0,0.47554388]
[1760112204401,0.01509066,118980.0,118970.0,1.20066632]
[1760112204612,0.00141381,119020.0,119010.0,0.1680531]
[1760112204822,0.24813381,119020.0,119010.0,0.2174731]
[1760112205037,0.00141381,119020.0,119010.0,0.2826731]
[1760112205249,0.00141381,119020.0,119010.0,0.3738331]
[1760112205460,0.00141381,119020.0,119010.0,1.09895554]
[1760112205902,0.00141381,119020.0,119010.0,1.1355376]
[1760112206114,0.00141381,119020.0,119010.0,1.1365376]
[1760112206318,0.00141381,119020.0,119010.0,0.6215531]
[1760112206543,0.00141381,119020.0,119010.0,0.20678]
[1760112206752,0.00141381,119020.0,119010.0,0.2826731]
[1760112207164,0.00141381,119020.0,119010.0,0.3748331]
[1760112207373,0.00141381,119020.0,119010.0,1.09995554]
[1760112207553,0.00141381,119020.0,119010.0,1.34663554]
[1760112207962,0.00141381,119020.0,119010.0,1.34763554]
[1760112208323,0.00141381,119020.0,119010.0,1.4287576]
[1760112208527,0.14715243,119060.0,119050.0,0.16799664]
[1760112208730,0.00015111,119060.0,119050.0,1.09809908]
[1760112208937,0.00015111,119060.0,119050.0,0.20498]
[1760112209153,0.00015111,119060.0,119040.0,0.04579]
[1760112209154,0.00015111,119060.0,119040.0,0.46047945]
[1760112209411,0.00015111,119060.0,119050.0,0.16799664]
[1760112209621,0.00015111,119060.0,119050.0,0.37297664]
[1760112210029,0.00015111,119060.0,119050.0,0.27757664]
[1760112210235,0.00015111,119060.0,119050.0,0.10958]
[1760112210443,0.00015111,119060.0,119050.0,0.04579]
[1760112210654,1.43989607,119060.0,119040.0,0.04579]
[1760112210863,0.53266042,119050.0,119030.0,0.04579]
[1760112211070,0.36466,119050.0,119030.0,0.04579]
[1760112211279,0.03993,119040.0,119030.0,0.21381486]
[1760112211481,0.03993,119040.0,119030.0,0.46045486]
[1760112211688,0.36466,119050.0,119030.0,0.61964486]
[1760112212104,0.36466,119050.0,119040.0,0.04579]
[1760112212311,0.5326672,119050.0,119030.0,0.04579]
[1760112212516,0.44778206,119050.0,119030.0,0.04579]
[1760112212688,0.61577874,119050.0,119030.0,0.21381425]
[1760112212928,0.44778206,119050.0,119030.0,0.21381204]
[1760112213134,0.38008111,119060.0,119050.0,0.16799664]
[1760112213336,0.92112411,119060.0,119050.0,0.04579]
[1760112213546,0.92112411,119060.0,119040.0,0.30920075]
[1760112213547,1.64624655,119060.0,119040.0,0.21379785]
[1760112213754,1.35180355,119060.0,119040.0,0.21379785]
[1760112213963,0.62668111,119060.0,119040.0,0.21379785]
[1760112214178,0.02466,119050.0,119040.0,0.21379785]
[1760112214388,1.35180355,119060.0,119040.0,0.27758785]
[1760112214590,0.02466,119050.0,119040.0,0.27758785]
[1760112214797,0.00158981,119050.0,119040.0,0.27758785]
[1760112215025,0.00158981,119050.0,119040.0,0.37298785]
[1760112215618,0.00158981,119050.0,119040.0,1.09811029]
[1760112215927,0.00158981,119050.0,119040.0,0.37298785]
[1760112216083,0.00158981,119050.0,119040.0,0.37398785]
[1760112216494,0.00158981,119050.0,119040.0,0.37298785]
[1760112216955,0.00158981,119050.0,119040.0,1.18223235]
[1760112217153,0.00158981,119050.0,119040.0,0.45710991]
[1760112217295,0.00158981,119050.0,119040.0,0.70466991]
[1760112217904,0.00158981,119050.0,119040.0,1.42979235]
[1760112218106,0.00158981,119050.0,119040.0,1.45994425]
[1760112218333,0.00015111,119060.0,119040.0,1.82494424]
[1760112218533,0.06619503,119100.0,119090.0,0.16794021]
[1760112218732,0.06670002,119100.0,119090.0,0.46029021]
[1760112218955,0.06670002,119100.0,119090.0,0.61948021]
[1760112219109,0.06670002,119100.0,119090.0,0.45154]
[1760112219310,0.00050499,119100.0,119090.0,0.37292021]
[1760112219510,0.00050499,119100.0,119090.0,0.24656]
[1760112219737,0.00050499,119100.0,119090.0,0.10958]
[1760112219935,0.00050499,119100.0,119090.0,0.35614]
[1760112220135,0.00050499,119100.0,119080.0,0.21374369]
[1760112220337,0.00050499,119100.0,119090.0,0.3561]
[1760112220587,0.00050499,119100.0,119090.0,0.61944021]
[1760112220774,0.00050499,119100.0,119090.0,0.52404021]
[1760112221316,1.0261356,119100.0,119070.0,0.21374794]
[1760112221433,0.19256186,119090.0,119070.0,0.04579]
[1760112221637,0.19256186,119090.0,119080.0,0.21374431]
[1760112221638,0.02462,119090.0,119080.0,0.21374431]
[1760112222061,0.40824705,119100.0,119090.0,0.16794021]
[1760112222262,0.34050499,119100.0,119090.0,0.20498]
[1760112222519,1.25891354,119100.0,119080.0,0.29231]
[1760112222680,0.5337911,119100.0,119080.0,0.29231]
[1760112222904,0.5337911,119100.0,119080.0,0.4602624]
[1760112223107,0.5337911,119100.0,119080.0,0.52236341]
[1760112223308,0.16794021,119090.0,119070.0,0.04579]
[1760112223533,0.03237,119080.0,119070.0,0.04579]
[1760112223791,0.03237,119080.0,119070.0,0.27754842]
[1760112224004,0.37237,119090.0,119070.0,0.37294801]
[1760112224216,0.37237,119090.0,119070.0,0.10958]
[1760112224651,0.00158923,119080.0,119070.0,0.10958]
[1760112224854,0.00158923,119080.0,119070.0,0.04579]
[1760112225266,0.00158923,119080.0,119070.0,0.10958]
[1760112225484,0.00158923,119080.0,119070.0,0.04579]
[1760112225695,0.00158923,119080.0,119070.0,0.10958]
[1760112225899,0.17003354,119080.0,119060.0,0.10875194]
[1760112226109,0.16799664,119050.0,119040.0,0.04579]
[1760112226318,0.0574,119050.0,119030.0,0.0472034]
[1760112226523,0.02849,119050.0,119030.0,0.21522818]
[1760112226724,0.02849,119050.0,119030.0,0.0472034]
[1760112226725,0.19648757,119050.0,119030.0,0.0472034]
[1760112226930,0.50850075,119040.0,119030.0,0.0014134]
[1760112227141,1.28263319,119040.0,119030.0,0.0014134]
[1760112227364,1.90673105,119040.0,119030.0,0.00156451]
[1760112227579,1.66025105,119040.0,119030.0,0.00156451]
[1760112227792,1.90673105,119040.0,119030.0,0.00156451]
[1760112227995,1.98749105,119040.0,119030.0,0.00156451]
[1760112228664,1.19599334,119040.0,119030.0,0.00156451]
[1760112228870,2.21660578,119040.0,119030.0,0.00156451]
[1760112229291,1.49148334,119040.0,119030.0,0.00156451]
[1760112229507,2.10650678,119040.0,119030.0,0.00156451]
[1760112229714,2.43374678,119040.0,119030.0,0.00156451]
[1760112229915,2.41404678,119040.0,119030.0,0.00156451]
[1760112230090,2.29736578,119040.0,119030.0,0.00156451]
[1760112230638,1.97012578,119040.0,119030.0,0.00156451]
[1760112230849,2.99385478,119040.0,119030.0,0.00156451]
[1760112231255,1.97012578,119040.0,119030.0,0.00156451]
[1760112231459,2.29736578,119040.0,119030.0,0.00156451]
[1760112231663,2.77908878,119040.0,119030.0,0.00156451]
[1760112232099,2.45184878,119040.0,119030.0,0.00156451]
[1760112232339,2.82459459,119040.0,119030.0,0.00156451]
[1760112232550,2.49735459,119040.0,119030.0,0.00156451]
[1760112232976,2.74387459,119040.0,119030.0,0.00156451]
[1760112233193,2.90463139,119040.0,119030.0,0.00156451]
[1760112233403,3.22269858,119040.0,119030.0,0.00156451]
[1760112233629,8.06405558,119040.0,119030.0,0.00156451]
[1760112233832,3.06405558,119040.0,119030.0,0.00156451]
[1760112234036,6.80152114,119040.0,119030.0,0.00156451]
[1760112234253,2.41369558,119040.0,119030.0,0.00156451]
[1760112234497,2.34139133,119040.0,119030.0,0.00156451]
[1760112234704,2.36867133,119040.0,119030.0,0.00156451]
[1760112234914,2.36097878,119040.0,119030.0,0.00156451]
[1760112235119,1.98547969,119040.0,119030.0,0.00156451]
[1760112235324,1.0923465,119040.0,119030.0,0.00156451]
[1760112235533,0.38798259,119040.0,119030.0,0.00156451]
[1760112235761,0.63450259,119040.0,119030.0,0.00156451]
[1760112235970,1.14251334,119040.0,119030.0,0.00156451]
[1760112236184,1.91664578,119040.0,119030.0,0.00156451]
[1760112236600,1.93204889,119040.0,119030.0,0.00156451]
[1760112236787,1.93204906,119040.0,119030.0,0.00156451]
[1760112237828,2.23204906,119040.0,119030.0,0.00156451]
[1760112238033,1.98552906,119040.0,119030.0,0.00156451]
[1760112238584,1.28990587,119040.0,119030.0,0.00156451]
[1760112238948,1.45791662,119040.0,119030.0,0.00156451]
[1760112239147,0.65977381,119040.0,119030.0,0.18122726]
[1760112239351,0.36527801,119040.0,119030.0,0.28124937]
[1760112239565,0.02849,119050.0,119040.0,0.16801075]
[1760112239772,0.02849,119050.0,119030.0,0.21761937]
[1760112239773,0.75558418,119050.0,119030.0,0.21761937]
[1760112239984,1.20935,119050.0,119030.0,0.04959451]
[1760112240188,0.16801075,119040.0,119030.0,0.04959451]
[1760112240404,1.32024735,119040.0,119030.0,0.00156451]
[1760112240831,0.61052955,119040.0,119030.0,0.00156451]
[1760112241042,1.33565199,119040.0,119030.0,0.00156451]
[1760112241255,1.71641199,119040.0,119030.0,0.00156451]
[1760112241452,1.72411477,119040.0,119030.0,0.00156451]
[1760112241868,1.76472894,119040.0,119030.0,0.00156451]
[1760112242073,1.68396894,119040.0,119030.0,0.00156451]
[1760112242520,2.01124894,119040.0,119030.0,0.00156451]
[1760112243145,0.79083575,119040.0,119030.0,0.00156451]
[1760112243352,1.93048894,119040.0,119030.0,0.00156451]
[1760112243994,1.2053665,119040.0,119030.0,0.00156451]
[1760112244161,1.93048894,119040.0,119030.0,0.00156451]
[1760112244366,1.9304799,119040.0,119030.0,0.00156451]
[1760112244567,2.0112399,119040.0,119030.0,0.00156451]
[1760112244733,0.90982746,119040.0,119030.0,0.00156451]
[1760112244939,1.9304799,119040.0,119030.0,0.00156451]
[1760112245137,2.2704799,119040.0,119030.0,0.00156451]
[1760112245782,3.14450706,119040.0,119030.0,0.00156451]
[1760112245981,2.60755302,119040.0,119030.0,0.00156451]
[1760112246660,2.38889339,119040.0,119030.0,0.00156451]
[1760112246860,4.65164839,119040.0,119030.0,0.00156451]
[1760112247135,4.68459239,119040.0,119030.0,0.00156451]
[1760112247356,4.69189139,119040.0,119030.0,0.00156451]
[1760112247616,7.46989019,119040.0,119030.0,0.00156451]
[1760112247844,7.37650219,119040.0,119030.0,0.00156451]
[1760112248063,7.46989019,119040.0,119030.0,0.00156451]
[1760112248728,7.46989019,119040.0,118970.0,0.06481981]
[1760112248729,0.1680923,118990.0,118970.0,0.06481981]
[1760112248969,0.34407,118980.0,118970.0,0.06497117]
[1760112249209,0.34407,118980.0,118970.0,0.18505077]
[1760112249210,0.33137,118980.0,118970.0,0.18505077]
[1760112249439,1.22458791,118980.0,118970.0,0.01694117]
[1760112249672,1.60284507,118980.0,118970.0,0.01694117]
[1760112249902,1.61821211,118980.0,118970.0,0.01694117]
[1760112250383,1.60284507,118980.0,118970.0,0.01694117]
[1760112250610,1.61820672,118980.0,118970.0,0.01694117]
[1760112251100,1.63577563,118980.0,118970.0,0.01694117]
[1760112251807,6.03599131,118980.0,118970.0,0.01694117]
[1760112252039,5.14788351,118980.0,118970.0,0.01640235]
[1760112252272,5.62446551,118980.0,118970.0,0.01640235]
[1760112252510,5.25380651,118980.0,118970.0,0.01640235]
[1760112252730,5.2544792,118980.0,118970.0,0.01640235]
[1760112252951,5.0964912,118980.0,118970.0,0.01640235]
[1760112253209,5.9049802,118980.0,118970.0,0.01640235]
[1760112253486,5.2552502,118980.0,118970.0,0.01640235]
[1760112253697,5.9906702,118980.0,118970.0,0.01640235]
[1760112253916,4.8743192,118980.0,118970.0,0.01640235]
[1760112254119,2.93528951,118980.0,118970.0,0.01640235]
[1760112254339,2.73001651,118980.0,118970.0,0.01640235]
[1760112254553,5.10640651,118980.0,118970.0,0.01640235]
[1760112254806,5.55646551,118980.0,118970.0,0.01640235]
[1760112254995,5.74774325,118980.0,118970.0,0.0195841]
[1760112255209,7.04519925,118980.0,118970.0,0.0195841]
[1760112255412,8.10494525,118980.0,118970.0,0.0195841]
[1760112255617,3.22528141,118980.0,118970.0,0.0195841]
[1760112255818,2.90200141,118980.0,118970.0,0.0195841]
[1760112256043,7.55284941,118980.0,118970.0,0.0195841]
[1760112256239,8.22528141,118980.0,118970.0,0.0195841]
[1760112256439,8.30608141,118980.0,118970.0,0.0195841]
[1760112256789,8.32864992,118980.0,118970.0,0.0195841]
[1760112256996,0.17657444,118930.0,118900.0,0.11462503]
[1760112257264,0.035,118910.0,118900.0,0.29841271]
[1760112257471,0.03586,118910.0,118900.0,0.06709958]
[1760112257607,0.34860167,118910.0,118900.0,0.16911312]
[1760112257809,0.59516167,118910.0,118900.0,0.00090455]
[1760112258011,0.83645972,118910.0,118900.0,0.00090455]
[1760112258273,0.335,118930.0,118910.0,0.16819443]
[1760112258470,0.24656,118930.0,118920.0,0.3923283]
[1760112258677,0.26455116,118930.0,118920.0,0.27984028]
[1760112258854,0.26455116,118930.0,118910.0,0.22463415]
[1760112258855,1.25118213,118930.0,118910.0,0.04803]
[1760112259057,1.09063213,118930.0,118920.0,0.16818028]
[1760112259255,0.72374382,118930.0,118920.0,0.16818028]
[1760112259638,0.80975382,118930.0,118910.0,0.21622317]
[1760112259857,0.01799116,118930.0,118920.0,0.38257196]
[1760112260061,0.02454,118940.0,118930.0,0.16816614]
[1760112260300,0.02454,118940.0,118930.0,0.27982614]
[1760112260471,0.04216638,118940.0,118930.0,0.27982614]
[1760112260673,0.01762638,118940.0,118930.0,0.27982614]
[1760112260874,0.24685,118940.0,118930.0,0.16816614]
[1760112261161,0.375,118950.0,118940.0,0.168152]
[1760112261365,1.06844572,118950.0,118940.0,0.168152]
[1760112261575,2.26731462,118950.0,118930.0,0.21619614]
[1760112261776,1.37539097,118940.0,118910.0,0.04803]
[1760112261976,0.03089,118920.0,118910.0,0.16819415]
[1760112262099,0.3265497,118920.0,118910.0,0.16819415]
[1760112262349,0.3265497,118920.0,118910.0,0.1686987]
[1760112262908,0.3753197,118920.0,118910.0,0.00050455]
[1760112263116,0.7153197,118920.0,118910.0,0.00050455]
[1760112263316,0.6665497,118920.0,118910.0,0.17188315]
[1760112264102,1.70146067,118920.0,118910.0,0.00368872]
[1760112264335,2.02890067,118920.0,118910.0,0.00368872]
[1760112264542,2.32890067,118920.0,118910.0,0.00368872]
[1760112265311,2.00146067,118920.0,118910.0,0.17188315]
[1760112265462,1.37711176,118920.0,118910.0,0.17188315]
[1760112265668,0.74967176,118920.0,118910.0,0.17188315]
[1760112265872,1.07711176,118920.0,118910.0,0.17188315]
[1760112266111,0.74967176,118920.0,118910.0,0.17188315]
[1760112266314,0.74930176,118920.0,118910.0,0.17188315]
[1760112266512,0.03089,118930.0,118920.0,0.16818028]
[1760112266733,0.9122551,118930.0,118920.0,0.27984028]
[1760112266934,0.6656551,118930.0,118920.0,0.27984028]
[1760112267348,0.27753,118930.0,118920.0,0.27984028]
[1760112267557,0.03102,118940.0,118930.0,0.16816614]
[1760112267768,0.3257659,118940.0,118930.0,0.23179614]
[1760112267974,0.63089,118970.0,118950.0,0.16813787]
[1760112268190,0.01536055,118970.0,118960.0,1.28296264]
[1760112268428,0.26341481,118990.0,118980.0,0.16809547]
[1760112268643,0.01677481,118990.0,118980.0,0.37991547]
[1760112268870,0.01677481,118990.0,118980.0,0.28245547]
[1760112268871,0.31138371,118990.0,118980.0,0.28245547]
[1760112269084,0.31153504,118990.0,118980.0,0.28245547]
[1760112269298,0.37854979,118990.0,118970.0,0.21651763]
[1760112269494,0.0114,118980.0,118970.0,0.16809763]
[1760112269699,0.26200055,118980.0,118970.0,0.28245763]
[1760112269911,0.01536055,118980.0,118970.0,0.28245763]
[1760112270148,0.44412821,118980.0,118960.0,0.16812373]
[1760112270376,0.44412821,118980.0,118940.0,0.2249796]
[1760112270377,0.69967206,118970.0,118940.0,0.2249796]
[1760112270587,0.69967206,118970.0,118960.0,0.21654373]
[1760112270588,0.26200055,118970.0,118960.0,0.21654373]
[1760112270793,0.58736815,118970.0,118960.0,0.21654373]
[1760112271004,0.26200055,118970.0,118960.0,1.18550264]
[1760112271208,0.55665845,118970.0,118960.0,0.28248373]
[1760112271435,0.55665845,118970.0,118960.0,0.21654373]
[1760112271640,0.58735845,118970.0,118960.0,0.16812373]
[1760112272061,0.31001845,118970.0,118960.0,0.23406373]
[1760112272274,0.31001845,118970.0,118960.0,1.28396264]
[1760112272275,0.01536055,118970.0,118960.0,1.28396264]
[1760112273131,0.01536055,118970.0,118960.0,0.001]
[1760112273132,2.09425255,118970.0,118960.0,0.001]
[1760112273349,1.49123364,118970.0,118960.0,0.001]
[1760112273552,1.50931996,118970.0,118960.0,0.001]
[1760112273976,1.78312493,118970.0,118960.0,0.001]
[1760112274181,0.3,118950.0,118940.0,0.17655706]
[1760112274519,0.65488575,118950.0,118940.0,0.17655706]
[1760112274676,0.01536055,118950.0,118940.0,1.29139597]
[1760112274881,0.26244055,118950.0,118940.0,1.29139597]
[1760112275505,0.26244055,118950.0,118940.0,0.29091706]
[1760112275931,0.01576055,118950.0,118940.0,0.168152]
[1760112276367,0.13814261,118950.0,118940.0,0.168152]
[1760112276568,0.73286471,118950.0,118940.0,0.168152]
[1760112276992,0.69360471,118950.0,118940.0,0.168152]
[1760112278278,0.39360471,118950.0,118940.0,0.168152]
[1760112278477,0.55748265,118950.0,118940.0,0.168152]
[1760112278683,0.55748265,118950.0,118940.0,0.16974369]
[1760112279561,0.31048265,118950.0,118940.0,0.16974369]
[1760112279774,0.31008265,118950.0,118940.0,0.16974369]
[1760112279973,0.55696265,118950.0,118940.0,0.28410369]
[1760112280375,0.01536055,118950.0,118940.0,1.2845826]
[1760112280596,0.01536055,118950.0,118940.0,0.28410369]
[1760112281319,0.01536055,118950.0,118940.0,0.38156369]
[1760112281527,0.01536055,118950.0,118940.0,1.2845826]
[1760112281727,0.01536055,118950.0,118940.0,1.39785656]
[1760112281936,0.24692,118970.0,118960.0,0.16812373]
[1760112282147,0.27766,118980.0,118970.0,0.1681096]
[1760112282352,0.58787884,118980.0,118970.0,0.2165296]
[1760112282566,0.35903489,118980.0,118970.0,0.2824696]
[1760112282773,0.26250074,118980.0,118970.0,0.3799296]
[1760112283216,0.3,118970.0,118950.0,0.21655462]
[1760112283434,0.36781206,118960.0,118950.0,0.21655462]
[1760112283640,0.6779388,118960.0,118950.0,0.21655462]
[1760112283870,0.59481674,118960.0,118950.0,0.16813462]
[1760112284082,0.05315944,118960.0,118950.0,0.28249462]
[1760112284722,0.03773,118960.0,118950.0,0.21655462]
[1760112284919,0.03773,118960.0,118950.0,0.21755462]
[1760112285188,0.05393364,118960.0,118950.0,0.16913787]
[1760112285401,0.3720191,118960.0,118950.0,0.16913787]
[1760112285613,0.3331991,118960.0,118950.0,0.16913787]
[1760112286893,0.45514116,118960.0,118950.0,0.16913787]
[1760112287557,0.2946891,118960.0,118950.0,1.18651678]
[1760112287822,0.0001513,118980.0,118960.0,0.16812373]
[1760112288058,0.01542881,118990.0,118980.0,0.16809547]
[1760112288297,0.64256409,118990.0,118980.0,0.16809547]
[1760112288582,0.64256409,118990.0,118980.0,1.27946438]
[1760112288583,0.01542881,118990.0,118980.0,1.27946438]
[1760112288812,0.11896,119010.0,119000.0,0.16806722]
[1760112288813,0.03812,119010.0,119000.0,0.16806722]
[1760112289049,0.01543266,119020.0,119010.0,0.1680531]
[1760112289283,0.02314978,119030.0,119020.0,0.16803898]
[1760112289554,0.00015156,119030.0,119020.0,0.37638898]
[1760112289788,0.00015156,119030.0,119020.0,0.27672898]
[1760112290264,0.00015156,119030.0,119010.0,0.22206575]
[1760112290492,0.00055156,119030.0,119020.0,0.16803898]
[1760112291228,0.38367362,119030.0,119020.0,0.16803898]
[1760112291462,0.48228066,119030.0,119010.0,0.1680531]
[1760112291764,0.2472,119020.0,119010.0,0.1680531]
[1760112292004,0.26263319,119020.0,119010.0,0.1680531]
[1760112292245,0.26527319,119020.0,119010.0,0.1680531]
[1760112292733,1.06575676,119020.0,119010.0,0.1680531]
[1760112293229,1.06575676,119020.0,119010.0,1.27942201]
[1760112293230,0.02313978,119020.0,119010.0,1.27942201]
[1760112293471,0.00015156,119030.0,119020.0,0.16803898]
[1760112293715,0.00015156,119030.0,119020.0,1.46344789]
[1760112293961,0.02313978,119060.0,119040.0,0.16799847]
[1760112294199,0.33003261,119080.0,119070.0,0.16796842]
[1760112294200,0.01808549,119080.0,119070.0,0.16796842]
[1760112294437,0.0005053,119080.0,119070.0,1.52697733]
[1760112294700,0.0005053,119080.0,119070.0,0.37631842]
[1760112294954,0.0005053,119080.0,119070.0,0.52429842]
[1760112295438,0.0005053,119080.0,119070.0,0.62395842]
[1760112295902,0.0005053,119080.0,119070.0,1.52697733]
[1760112296627,0.42174736,119080.0,119070.0,0.16796842]
[1760112296858,0.43983285,119080.0,119070.0,0.16796842]
[1760112297089,0.35671079,119080.0,119070.0,0.21357842]
[1760112297318,0.0386253,119080.0,119070.0,0.21357842]
[1760112297562,0.0390253,119080.0,119060.0,0.21359252]
[1760112297789,0.0390253,119080.0,119070.0,0.16896842]
[1760112298264,0.0386253,119080.0,119070.0,0.16796842]
[1760112298721,0.54058431,119080.0,119060.0,0.16798152]
[1760112298963,0.64739716,119080.0,119060.0,0.16798252]
[1760112299191,0.49833048,119070.0,119050.0,0.22200647]
[1760112299418,0.52065535,119070.0,119050.0,0.22200647]
[1760112299641,0.51641597,119070.0,119050.0,0.32102647]
[1760112299867,0.00370977,119060.0,119050.0,0.22200647]
[1760112300103,0.00370977,119060.0,119050.0,0.28664647]
[1760112300344,0.00370977,119060.0,119050.0,0.11025]
[1760112300619,0.63175435,119060.0,119040.0,0.16801075]
[1760112300858,0.43893755,119060.0,119040.0,0.21343074]
[1760112301148,0.0005053,119080.0,119070.0,0.16796842]
[1760112301364,0.0005053,119080.0,119070.0,1.52766733]
[1760112301598,0.0005053,119080.0,119070.0,1.39334129]
[1760112302066,0.0002,119090.0,119080.0,0.53810621]
[1760112302351,0.31800866,119140.0,119120.0,0.16789791]
[1760112302589,0.31800866,119140.0,119130.0,0.37696382]
[1760112302590,0.00015141,119140.0,119130.0,0.37696382]
[1760112303073,0.00015141,119140.0,119130.0,1.27998273]
[1760112303563,0.00015141,119140.0,119130.0,0.37696382]
[1760112303827,0.00015141,119140.0,119130.0,1.27998273]
[1760112304098,0.00015141,119140.0,119130.0,0.52578382]
[1760112304452,0.00015141,119140.0,119130.0,0.21330382]
[1760112304950,0.2511432,119140.0,119120.0,0.04542]
[1760112304953,0.16788382,119130.0,119120.0,0.24796]
[1760112305198,0.00221,119130.0,119120.0,0.16789791]
[1760112305467,0.16789791,119120.0,119100.0,0.21334555]
[1760112305768,0.20602791,119120.0,119100.0,0.46134555]
[1760112306018,0.20602791,119120.0,119100.0,0.41588453]
[1760112306019,0.28914997,119120.0,119100.0,0.41588453]
[1760112306271,0.28914997,119120.0,119100.0,0.16792453]
[1760112306549,0.28914997,119120.0,119080.0,1.28719692]
[1760112306550,0.16792611,119100.0,119080.0,0.21337321]
[1760112306758,0.25104817,119100.0,119080.0,0.16795431]
[1760112306993,0.00185,119090.0,119080.0,0.16795431]
[1760112307226,0.33108206,119100.0,119080.0,0.16795431]
[1760112307459,0.34,119100.0,119090.0,0.16794021]
[1760112307698,0.634339,119100.0,119090.0,0.16794021]
[1760112307944,1.05583272,119110.0,119100.0,0.16792611]
[1760112308207,1.43328168,119110.0,119090.0,0.21336021]
[1760112308460,1.43328168,119110.0,119080.0,1.12479093]
[1760112308461,0.16794021,119090.0,119080.0,0.04542]
[1760112308672,0.16794021,119090.0,119080.0,0.16795431]
[1760112308883,0.25104817,119100.0,119080.0,0.16795431]
[1760112309099,0.16794021,119090.0,119070.0,0.22173846]
[1760112309312,0.28315068,119100.0,119090.0,0.16794021]
[1760112309528,0.53280068,119100.0,119090.0,0.16794021]
[1760112309746,0.82715768,119100.0,119080.0,0.21437402]
[1760112309963,0.16794021,119090.0,119080.0,0.001]
[1760112310186,0.11707457,119100.0,119090.0,0.16794021]
[1760112310415,0.62315135,119100.0,119080.0,1.11639322]
[1760112310624,0.62315135,119100.0,119080.0,0.04542]
[1760112310870,0.62315135,119100.0,119080.0,0.21337425]